fUSD/lending_fUSD_20250608
["ID","MTS","AMOUNT","RATE_DAILY","PERIOD"]
[365004456,1749393038857,-657.3,0.00019178,2]
[365004458,1749393038868,-842.33,0.00019178,2]
[365004460,1749393038878,-151.32,0.00019178,2]
[365004462,1749393038889,-862.1,0.000192,2]
[365004464,1749393038900,-2500.0,0.000192,7]
[365004466,1749393038912,-500.0,0.00019233,2]
[365004469,1749393038923,-151.0,0.0001924,2]
[365004471,1749393038934,-151.0,0.0001924,2]
[365004473,1749393038945,-2370.8166,0.00019241,2]
[365004475,1749393038956,-1001.6974,0.00019242,2]
[365004477,1749393038968,-500.0,0.0001926,2]
[365004479,1749393038979,-500.0,0.00019288,2]
[365004482,1749393038991,-3800.0,0.000193,7]
[365004484,1749393039002,-500.0,0.00019315,2]
[365004486,1749393039012,-2498.826,0.00019317,2]
[365004488,1749393039023,-499.968007,0.0001933,2]
[365004490,1749393039033,-499.968007,0.0001933,2]
[365004492,1749393039043,-500.0,0.0001934,2]
[365004494,1749393039053,-500.0,0.0001934,2]
[365004496,1749393039064,-500.0,0.0001934,2]
[365004499,1749393039077,-500.0,0.0001934,2]
[365004501,1749393039088,-500.0,0.0001934,2]
[365004503,1749393039100,-500.0,0.0001934,2]
[365004505,1749393039113,-499.968007,0.00019341,2]
[365004507,1749393039124,-499.968007,0.00019341,2]
[365004510,1749393039136,-335.7788041,0.00019341,2]
[365004512,1749393039149,-866.39404262,0.00019342,2]
[365004514,1749393039161,-151.0,0.00019342,2]
[365004517,1749393039175,-480.0,0.00019342,2]
[365004519,1749393039187,-437.63386625,0.00019342,2]
[365004521,1749393039200,-499.968007,0.00019342,2]
[365004523,1749393039212,-499.968007,0.00019342,2]
[365004526,1749393039224,-499.968007,0.00019342,2]
[365004528,1749393039235,-499.968007,0.00019342,2]
[365004530,1749393039248,-539.97,0.00019342,2]
[365004532,1749393039260,-480.0,0.00019342,2]
[365004534,1749393039271,-480.0,0.00019342,2]
[365004537,1749393039282,-480.0,0.00019342,2]
[365004539,1749393039294,-480.0,0.00019342,2]
[365004541,1749393039305,-480.0,0.00019342,2]
[365004543,1749393039317,-480.0,0.00019342,2]
[365004545,1749393039328,-480.0,0.00019342,2]
[365004548,1749393039339,-1271.97,0.00019342,2]
[365004550,1749393039352,-360.09902752,0.00019342,2]
[365004552,1749393039363,-546.39,0.00019342,2]
[365004554,1749393039376,-480.0,0.00019342,2]
[365004556,1749393039387,-214.97980908,0.00019342,2]
[365004559,1749393039401,-480.0,0.00019342,2]
[365004561,1749393039414,-139.44052757,0.00019342,2]
[365004593,1749393039703,-340.55947243,0.00019342,2]
[365004595,1749393039714,-1550.25,0.00019342,2]
[365004597,1749393039725,-738.7,0.00019342,2]
[365004599,1749393039736,-480.0,0.00019342,2]
[365004601,1749393039747,-480.0,0.00019342,2]
[365004603,1749393039758,-522.67,0.00019342,2]
[365004605,1749393039768,-480.0,0.00019342,2]
[365004607,1749393039778,-480.0,0.00019342,2]
[365004609,1749393039788,-151.0,0.00019342,2]
[365004612,1749393039802,-151.0,0.00019342,2]
[365004614,1749393039813,-213.05207053,0.00019342,2]
[365004616,1749393039823,-480.0,0.00019342,2]
[365004618,1749393039835,-480.0,0.00019342,2]
[365004621,1749393039845,-8446.42532504,0.00019342,2]
[365004623,1749393039859,-13762.20675,0.00019342,2]
[365004785,1749393045642,-1165.98,0.00019178,2]
[365004786,1749393045652,-480.0,0.00019178,2]
[365004787,1749393045665,-5330.75792496,0.00019342,2]
[365004788,1749393045676,-480.0,0.00019342,2]
[365004789,1749393045686,-480.0,0.00019342,2]
[365004790,1749393045696,-151.0,0.00019342,2]
[365004791,1749393045707,-151.0,0.00019342,2]
[365004792,1749393045716,-151.0,0.00019342,2]
[365004793,1749393045726,-181.5859,0.00019342,2]
[365004794,1749393045737,-480.0,0.00019342,2]
[365004795,1749393045749,-90.03181302,0.00019342,2]
[365004796,1749393045761,-997.29162275,0.00019342,2]
[365004797,1749393045912,-1236.67656423,0.00019342,2]
[365004798,1749393045923,-480.0,0.00019342,2]
[365004799,1749393045933,-290.08319577,0.00019342,2]
[365004806,1749393592697,428.86,0.00016454,2]
[365004809,1749393784238,1902.0,0.00017052,2]
[365004810,1749393919340,203.87,0.00013699,2]
[365004812,1749393971614,201.0,0.00016868,2]
[365004821,1749394231863,-151.0,0.00017665,2]
[365004822,1749394231872,-151.0,0.00017707,2]
[365004823,1749394231882,-151.0,0.00017708,2]
[365004824,1749394231891,-151.0,0.00017708,2]
[365004825,1749394231901,-318.0,0.00017867,40]
[365004826,1749394231910,-250.0,0.00018022,2]
[365004827,1749394231921,-102.91278012,0.00018177,2]
[365004828,1749394231935,-653.51,0.00018177,2]
[365004829,1749394231949,-243.57721988,0.00018177,2]
[365004830,1749394231959,-150.0,0.00018275,7]
[365004831,1749394231967,-207.4,0.00018469,2]
[365004832,1749394231976,-1200.0,0.00018478,2]
[365004833,1749394231985,-260.52928388,0.00018479,2]
[365004834,1749394231996,-45.30071612,0.00018479,2]
[365004835,1749394232005,-300.0,0.00018479,2]
[365004836,1749394232017,-58.59095943,0.00018479,2]
[365004837,1749394232061,-245.46904057,0.00018479,2]
[365004838,1749394232070,-301.93,0.00018479,2]
[365004839,1749394232079,-498.81,0.0001848,2]
[365004840,1749394232088,-305.18,0.0001848,2]
[365004841,1749394232099,-266.58891206,0.0001848,2]
[365004842,1749394232111,-33.95108794,0.0001848,2]
[365004843,1749394232120,-303.63,0.0001848,2]
[365004844,1749394232132,-300.0,0.00018481,2]
[365004845,1749394232144,-668.84958401,0.00018606,2]
[365005394,1749394237879,-465.88413899,0.00018606,2]
[365005396,1749394237889,-305.1922705,0.000187,6]
[365005398,1749394237901,-267.75126631,0.000187,6]
[365005857,1749394242807,-250.98,0.000187,6]
[365005885,1749394243073,-176.07646319,0.000187,6]
[365005887,1749394243082,-428.86,0.00018718,2]
[365005888,1749394243091,-1655.09510251,0.000188,6]
[365006147,1749394245799,-344.90489749,0.000188,6]
[365006148,1749394245809,-1489.41085484,0.000189,6]
[365006149,1749394245822,-1510.58914516,0.000189,6]
[365006150,1749394245831,-163.757717,0.00018955,2]
[365006151,1749394245841,-500.0,0.00018989,7]
[365006152,1749394245852,-406.66,0.00018989,7]
[365006154,1749394245862,-200.0,0.000191,2]
[365006156,1749394245871,-151.0,0.00019166,2]
[365006158,1749394245881,-321.69,0.00019172,2]
[365006159,1749394245890,-231.98644538,0.00019177,2]
[365006160,1749394245899,-31.44958767,0.00019177,2]
[365006161,1749394245924,-177.8746037,0.00019177,2]
[365006162,1749394245934,-500.0,0.00019177,2]
[365006163,1749394245943,-268.01355462,0.00019177,2]
[365006164,1749394245953,-178.65104469,0.00019178,2]
[365006165,1749394245966,-321.34895531,0.00019178,2]
[365006166,1749394245975,-500.0,0.00019178,2]
[365006167,1749394245984,-513.75718571,0.00019178,2]
[365006168,1749394245994,-480.0,0.00019178,2]
[365006169,1749394246003,-480.0,0.00019178,2]
[365006170,1749394246012,-369.66225593,0.00019178,2]
[365006171,1749394246023,-114.24126119,0.00019178,2]
[365006172,1749394246033,-590.95,0.00019178,2]
[365006173,1749394246043,-354.92473881,0.00019178,2]
[365006174,1749394246058,-125.07526119,0.00019178,2]
[365006175,1749394246067,-125.13645034,0.00019178,2]
[365006193,1749394246287,-354.86354966,0.00019178,2]
[365006195,1749394246297,-480.0,0.00019178,2]
[365006197,1749394246305,-480.0,0.00019178,2]
[365006199,1749394246314,-578.86,0.00019178,2]
[365006201,1749394246323,-480.0,0.00019178,2]
[365006203,1749394246333,-460.0,0.00019178,2]
[365006205,1749394246341,-460.0,0.00019178,2]
[365006206,1749394246351,-480.0,0.00019178,2]
[365006207,1749394246359,-548.0,0.00019178,2]
[365006208,1749394246370,-480.0,0.00019178,2]
[365006209,1749394246379,-79.38469223,0.00019178,2]
[365007263,1749394271452,202.0,0.00016868,2]
[365007264,1749394383150,1001.26181377,0.00017,2]
[365007265,1749394724018,300.0,0.00015,5]
[365007266,1749394895826,445.59,0.00016284,2]
[365007267,1749395051847,201.0,0.00016949,2]
[365007268,1749395194984,470.0,0.000137,5]
[365007269,1749395231009,201.5,0.00013699,2]
[365007273,1749395431875,-1611.73,0.0001796,2]
[365007274,1749395431884,-250.0,0.00017964,2]
[365007275,1749395431895,-1131.06,0.00017969,2]
[365007276,1749395431904,-1000.0,0.00018192,2]
[365007277,1749395431913,-445.59,0.00018547,2]
[365007278,1749395431922,-166.45435853,0.00018567,2]
[365007279,1749395431932,-1200.0,0.00018567,2]
[365007280,1749395431941,-300.0,0.00018567,2]
[365007281,1749395431950,-2204.20368695,0.00018568,2]
[365007282,1749395431960,-2164.48223938,0.00018568,2]
[365007283,1749395431969,-151.0,0.00018655,2]
[365007284,1749395431978,-207.4,0.00018655,2]
[365007285,1749395431987,-158.31,0.00018657,2]
[365007286,1749395431996,-1157.5298411,0.00018657,2]
[365007287,1749395432008,-253.39681435,0.00018657,2]
[365007288,1749395432019,-1058.44493665,0.00018657,2]
[365007289,1749395432043,-47.4584079,0.00018657,2]
[365007290,1749395432051,-529.06386934,0.00018657,2]
[365007291,1749395432063,-1987.76613066,0.00018657,2]
[365007292,1749395432072,-242.31199538,0.00018665,2]
[365007293,1749395432082,-57.68800462,0.00018665,2]
[365007294,1749395432091,-200.0,0.00018665,2]
[365007295,1749395432100,-359.68197249,0.00018666,2]
[365007296,1749395432110,-507.08,0.00018666,2]
[365007297,1749395432119,-303.51,0.00018666,2]
[365007298,1749395432129,-504.0,0.00018666,2]
[365007299,1749395432139,-507.99,0.00018666,2]
[365007300,1749395432148,-300.42,0.00018666,2]
[365007301,1749395432158,-24.66173697,0.00018666,2]
[365007302,1749395432169,-478.17826303,0.00018666,2]
[365007303,1749395432178,-509.28,0.00018666,2]
[365007304,1749395432187,-129.70184617,0.00018666,2]
[365007305,1749395432202,-380.17815383,0.00018666,2]
[365007306,1749395432211,-304.52,0.00018666,2]
[365007307,1749395432220,-185.34184617,0.00018666,2]
[365007308,1749395432231,-312.76815383,0.00018666,2]
[365007310,1749395432240,-507.02,0.00018666,2]
[365007312,1749395432249,-300.04,0.00018666,2]
[365007314,1749395432259,-509.99,0.00018666,2]
[365007316,1749395432268,-491.37,0.00018666,2]
[365007318,1749395432277,-504.87,0.00018666,2]
[365007320,1749395432287,-302.74,0.00018666,2]
[365007322,1749395432295,-495.08,0.00018666,2]
[365007324,1749395432305,-505.83,0.00018666,2]
[365007326,1749395432314,-499.26,0.00018666,2]
[365007327,1749395432323,-305.27,0.00018666,2]
[365007328,1749395432332,-258.5703851,0.00018666,2]
[365007329,1749395432343,-249.7296149,0.00018666,2]
[365007330,1749395432355,-470.95803948,0.00018666,2]
[365007331,1749395432366,-35.01196052,0.00018666,2]
[365007332,1749395432377,-1005.68803948,0.00018666,2]
[365007333,1749395432398,-4551.6000001,0.00018666,2]
[365007334,1749395432409,-1259.95,0.00018666,2]
[365007891,1749395438533,-2554.49900787,0.00018666,2]
[365007894,1749395438544,-1076.20595105,0.00018666,2]
[365007896,1749395438555,-2596.1308,0.00018666,2]
[365008045,1749395440132,-993.32844395,0.00018666,2]
[365008048,1749395440144,-360.34978666,0.00018666,2]
[365008051,1749395440169,-1591.65,0.00018666,2]
[365008083,1749395440472,-619.68646497,0.00018666,2]
[365008085,1749395440482,-637.27243504,0.00018666,2]
[365008325,1749395443031,-9541.00841812,0.00018666,2]
[365008336,1749395443133,-14452.99457634,0.00018666,2]
[365008347,1749395443235,-15152.49793752,0.00018666,2]
[365010838,1749396053926,465.81,0.00015241,2]
[365010840,1749396131649,202.0,0.00017024,2]
[365010844,1749396373606,500.0,0.00016164,2]
[365010847,1749396396172,199.34,0.00013699,2]
[365010848,1749396396435,202.0,0.0001705,2]
[365010849,1749396399560,-205.0,0.00017058,2]
[365010850,1749396412002,-45.0,0.00017058,2]
[365010852,1749396486392,525.9,0.00016948,2]
[365010853,1749396528004,200.0,0.00016941,2]
[365010855,1749396556362,1048.64,0.00016956,2]
[365010858,1749396617575,3558.12828921,0.00017,2]
[365010870,1749396632036,-150.0,0.0001709,7]
[365010872,1749396632046,-1000.0,0.00017159,2]
[365010874,1749396632055,-178.98,0.00017188,2]
[365010875,1749396632065,-4485.46,0.00017297,2]
[365010876,1749396632073,-1196.5,0.00017329,2]
[365010877,1749396632083,-1200.0,0.00017374,2]
[365010878,1749396632092,-468.61977753,0.00017376,2]
[365010879,1749396632104,-554.62022247,0.00017376,2]
[365010880,1749396632113,-465.81,0.00017505,2]
[365010881,1749396632122,-300.0,0.00017699,2]
[365010882,1749396632132,-200.0,0.00017699,2]
[365010883,1749396632141,-1000.0,0.000177,6]
[365010884,1749396632150,-4984.01,0.000177,2]
[365010885,1749396632159,-617.92715382,0.000178,6]
[365010886,1749396632185,-1382.07284618,0.000178,6]
[365010887,1749396632195,-300.0,0.00017886,2]
[365010888,1749396632204,-471.23965557,0.00017889,2]
[365010889,1749396632216,-613.56256,0.00017889,2]
[365010890,1749396632227,-421.8467,0.00017889,2]
[365010891,1749396632241,-1703.13439769,0.00017889,2]
[365010892,1749396632253,-1500.0,0.00017889,2]
[365010893,1749396632264,-1417.0738,0.00017889,2]
[365010902,1749396638112,-15957.74288674,0.00017889,2]
[365010903,1749396638123,-153.89014296,0.00017889,2]
[365010904,1749396638133,-2707.43214256,0.0001789,2]
[365010905,1749396638142,-2190.53653149,0.0001789,2]
[365010906,1749396638151,-222.80334774,0.0001789,2]
[365010907,1749396638160,-3594.0,0.000179,2]
[365010908,1749396638169,-3100.0,0.000179,6]
[365010909,1749396638179,-151.25794126,0.000179,2]
[365010910,1749396638188,-500.0,0.00017923,2]
[365010911,1749396638198,-500.0,0.00017923,2]
[365010912,1749396638208,-412.9125533,0.00017923,2]
[365010913,1749396638218,-442.195,0.00017924,2]
[365010914,1749396638227,-150.0,0.00017924,2]
[365010915,1749396638237,-184.2323798,0.00017924,2]
[365010916,1749396638246,-500.0,0.00017973,2]
[365010917,1749396638255,-500.0,0.00017973,2]
[365010918,1749396638265,-500.0,0.00017973,2]
[365010919,1749396638274,-216.68707412,0.00017973,2]
[365010920,1749396638284,-500.0,0.00017973,2]
[365010921,1749396638294,-502.67181767,0.00017973,2]
[365010922,1749396638304,-500.59399051,0.00017973,2]
[365010923,1749396638313,-500.0,0.00017973,2]
[365010924,1749396638323,-500.0,0.00017973,2]
[365010925,1749396638333,-500.0,0.00017973,2]
[365010926,1749396638343,-354.4,0.00017978,2]
[365010927,1749396638353,-354.4,0.00017978,2]
[365010928,1749396638363,-151.0,0.00017979,2]
[365010929,1749396638374,-151.0,0.00017979,2]
[365010930,1749396638384,-151.0,0.00017979,2]
[365010931,1749396638395,-151.0,0.00017979,2]
[365010932,1749396638406,-151.0,0.00017979,2]
[365010933,1749396638415,-151.0,0.00017979,2]
[365010934,1749396638426,-400.62,0.00017979,3]
[365010935,1749396638437,-158.31,0.0001798,2]
[365010936,1749396638452,-525.85,0.00017982,2]
[365010937,1749396638463,-4138.57061467,0.00017989,2]
[365010938,1749396638472,-151.0,0.00017989,2]
[365010939,1749396638481,-151.0,0.00017989,2]
[365010940,1749396638489,-151.0,0.00017989,2]
[365010941,1749396638500,-553.8103419,0.00017989,2]
[365010942,1749396638511,-8304.54424704,0.0001799,2]
[365010943,1749396638522,-1281.80935714,0.0001799,2]
[365010944,1749396638535,-7383.8,0.0001799,2]
[365010945,1749396638553,-628.78261704,0.0001799,2]
[365010946,1749396638565,-2684.50940627,0.0001799,2]
[365010949,1749396638587,-2251.98811296,0.0001799,2]
[365010951,1749396638599,-2103.1967976,0.0001799,2]
[365011112,1749396640455,-22797.87097527,0.0001799,2]
[365011114,1749396640467,-15353.08045057,0.0001799,2]
[365011116,1749396640479,-19138.01502504,0.0001799,2]
[365011118,1749396640490,-524.65,0.0001799,2]
[365011432,1749396643570,-1122882.27727646,0.0001799,2]
[365011670,1749396646130,-1283.517,0.0001799,2]
[365011681,1749396646231,-556.15,0.0001799,2]
[365011693,1749396646403,-3714.37844748,0.0001799,2]
[365011696,1749396646428,-715.1210082,0.0001799,2]
[365011709,1749396646539,-1609.20374821,0.0001799,2]
[365012079,1749397139705,419.22,0.00015139,2]
[365012082,1749397177915,179.57,0.00017046,2]
[365012083,1749397212285,203.0,0.00016412,2]
[365012084,1749397277104,1047.555789,0.00016986,2]
[365012085,1749397296025,150.0,0.00017027,7]
[365012087,1749397410813,226.33592179,0.00017051,2]
[365012088,1749397410842,1557.20407821,0.00017051,2]
[365012089,1749397446163,171.15,0.0001363,2]
[365012091,1749397509181,197.28,0.00013699,2]
[365012092,1749397527027,161.31013758,0.0001702,2]
[365012100,1749397832649,-299.6,0.0001707,2]
[365012101,1749397832659,-761.6,0.00017072,2]
[365012102,1749397832671,-238.4,0.00017072,2]
[365012103,1749397832681,-250.0,0.00017096,2]
[365012104,1749397832691,-203.0,0.00017307,2]
[365012105,1749397832700,-419.22,0.00017402,2]
[365012106,1749397832709,-276.54553051,0.00017633,2]
[365012107,1749397832720,-254.21,0.00017733,2]
[365012108,1749397832729,-2229.86,0.00017795,2]
[365012109,1749397832738,-300.0,0.00017799,2]
[365012110,1749397832747,-300.0,0.00017799,2]
[365012111,1749397832756,-300.0,0.00017799,2]
[365012112,1749397832765,-1200.0,0.00017799,2]
[365012113,1749397832775,-163.27,0.000178,2]
[365012114,1749397832784,-163.27,0.000178,2]
[365012115,1749397832793,-163.27,0.000178,2]
[365012116,1749397832803,-163.27,0.000178,2]
[365012117,1749397832812,-326.4,0.000178,2]
[365012118,1749397832823,-353.82,0.000178,2]
[365012119,1749397832835,-157.0727341,0.0001789,2]
[365012120,1749397832847,-1971.48287835,0.000179,2]
[365012121,1749397832857,-350.0,0.00017972,2]
[365012122,1749397832866,-520.08763609,0.00017973,2]
[365012123,1749397832877,-518.30448933,0.00017973,2]
[365012124,1749397832889,-500.0,0.00017973,2]
[365012125,1749397832899,-496.19684875,0.00017973,2]
[365012126,1749397832909,-500.0,0.00017973,2]
[365012127,1749397832918,-500.0,0.00017973,2]
[365012128,1749397832927,-500.0,0.00017973,2]
[365012129,1749397832937,-151.0,0.00017979,2]
[365012130,1749397832946,-151.0,0.00017979,2]
[365012131,1749397832956,-880.9,0.0001798,2]
[365012132,1749397832967,-880.9,0.0001798,2]
[365012133,1749397832976,-880.9,0.0001798,2]
[365012134,1749397832986,-880.9,0.0001798,2]
[365012135,1749397832995,-880.9,0.0001798,2]
[365012136,1749397833005,-200.0,0.00017987,2]
[365012137,1749397833015,-480.0,0.00017989,2]
[365012138,1749397833025,-325.47,0.00017989,2]
[365012139,1749397833034,-500.0,0.00017989,2]
[365012140,1749397833044,-500.0,0.00017989,2]
[365012141,1749397833053,-500.0,0.00017989,2]
[365012142,1749397833062,-500.0,0.00017989,2]
[365012143,1749397833072,-500.0,0.00017989,2]
[365012144,1749397833082,-500.0,0.00017989,2]
[365012145,1749397833091,-500.0,0.00017989,2]
[365012146,1749397833101,-480.0,0.00017989,2]
[365012147,1749397833110,-480.0,0.00017989,2]
[365012148,1749397833120,-480.0,0.00017989,2]
[365012149,1749397833130,-480.0,0.00017989,2]
[365012150,1749397833140,-172.03,0.00017989,2]
[365012151,1749397833149,-178.41,0.00017989,2]
[365012152,1749397833158,-465.37,0.00017989,2]
[365012153,1749397833168,-480.0,0.00017989,2]
[365012154,1749397833177,-480.0,0.00017989,2]
[365012155,1749397833187,-560.0,0.00017989,2]
[365012156,1749397833196,-398.03869302,0.00017989,2]
[365012157,1749397833205,-489.34545351,0.00017989,2]
[365012158,1749397833214,-470.0,0.00017989,2]
[365012159,1749397833224,-480.0,0.00017989,2]
[365012160,1749397833233,-500.0,0.00017989,2]
[365012161,1749397833242,-150.0,0.00017989,2]
[365012162,1749397833252,-500.0,0.00017989,2]
[365012163,1749397833261,-150.0,0.00017989,2]
[365012164,1749397833271,-480.0,0.00017989,2]
[365012165,1749397833280,-500.0,0.00017989,2]
[365012166,1749397833289,-153.93623935,0.00017989,2]
[365012167,1749397833299,-500.0,0.00017989,2]
[365012168,1749397833309,-500.0,0.00017989,2]
[365012169,1749397833319,-491.22299461,0.00017989,2]
[365012170,1749397833329,-480.0,0.00017989,2]
[365012171,1749397833551,-480.0,0.00017989,2]
[365012172,1749397833561,-480.0,0.00017989,2]
[365012173,1749397833571,-250.0,0.00017989,2]
[365012174,1749397833580,-151.81951365,0.00017989,2]
[365012175,1749397833591,-478.50815936,0.00017989,2]
[365012176,1749397833600,-460.0,0.00017989,2]
[365012177,1749397833609,-392.59686136,0.00017989,2]
[365012178,1749397833620,-460.0,0.00017989,2]
[365012179,1749397833629,-460.0,0.00017989,2]
[365012180,1749397833639,-150.0,0.00017989,2]
[365012181,1749397833648,-150.0,0.00017989,2]
[365012182,1749397833657,-222.47001682,0.00017989,2]
[365012183,1749397833667,-150.0,0.00017989,2]
[365012184,1749397833677,-163.63677936,0.00017989,2]
[365012185,1749397833686,-150.0,0.00017989,2]
[365012186,1749397833695,-460.0,0.00017989,2]
[365012187,1749397833704,-480.0,0.00017989,2]
[365012188,1749397833713,-460.0,0.00017989,2]
[365012189,1749397833723,-480.0,0.00017989,2]
[365012190,1749397833732,-480.0,0.00017989,2]
[365012191,1749397833742,-480.0,0.00017989,2]
[365012192,1749397833751,-480.0,0.00017989,2]
[365012193,1749397833761,-460.0,0.00017989,2]
[365012194,1749397833770,-480.0,0.00017989,2]
[365012195,1749397833779,-480.0,0.00017989,2]
[365012196,1749397833788,-480.0,0.00017989,2]
[365012197,1749397833797,-480.0,0.00017989,2]
[365012198,1749397833806,-480.0,0.00017989,2]
[365012199,1749397833816,-500.0,0.00017989,2]
[365012200,1749397833825,-460.0,0.00017989,2]
[365012201,1749397833834,-655.7,0.00017989,2]
[365012202,1749397833844,-480.0,0.00017989,2]
[365012203,1749397833853,-897.41,0.00017989,2]
[365012204,1749397833862,-480.0,0.00017989,2]
[365012205,1749397833872,-480.0,0.00017989,2]
[365012206,1749397833881,-1421.06,0.00017989,2]
[365012207,1749397833890,-299.2500002,0.00017989,2]
[365012208,1749397833900,-480.0,0.00017989,2]
[365012209,1749397833909,-480.0,0.00017989,2]
[365012210,1749397833918,-480.0,0.00017989,2]
[365012211,1749397833927,-179.28693936,0.00017989,2]
[365012212,1749397833937,-480.0,0.00017989,2]
[365012213,1749397833946,-537.81772359,0.00017989,2]
[365012214,1749397833955,-500.0,0.00017989,2]
[365012215,1749397833965,-480.0,0.00017989,2]
[365012216,1749397833977,-480.0,0.00017989,2]
[365012217,1749397833986,-200.0,0.00017989,2]
[365012218,1749397833996,-480.0,0.00017989,2]
[365012219,1749397834006,-480.0,0.00017989,2]
[365012220,1749397834017,-480.0,0.00017989,2]
[365012221,1749397834026,-1629.75,0.00017989,2]
[365012222,1749397834036,-629.91,0.00017989,2]
[365012223,1749397834047,-179.36793841,0.00017989,2]
[365012224,1749397834056,-860.26,0.00017989,2]
[365012225,1749397834066,-480.0,0.00017989,2]
[365012226,1749397834075,-4463.48,0.00017989,2]
[365012227,1749397834084,-480.0,0.00017989,2]
[365012228,1749397834094,-480.0,0.00017989,2]
[365012229,1749397834103,-420.67568755,0.00017989,2]
[365012230,1749397834112,-1117.39,0.00017989,2]
[365012231,1749397834121,-480.0,0.00017989,2]
[365012232,1749397834131,-480.0,0.00017989,2]
[365012233,1749397834140,-500.86,0.00017989,2]
[365012234,1749397834150,-460.0,0.00017989,2]
[365012235,1749397834159,-2130.33,0.00017989,2]
[365012236,1749397834168,-1162.96,0.00017989,2]
[365012237,1749397834178,-480.0,0.00017989,2]
[365012238,1749397834187,-480.0,0.00017989,2]
[365012239,1749397834196,-480.0,0.00017989,2]
[365012240,1749397834205,-4522.59454191,0.00017989,2]
[365012241,1749397834219,-1046.07614182,0.00017989,2]
[365012242,1749397834230,-6831.37118756,0.00017989,2]
[365012243,1749397834253,-927.61514,0.00017989,2]
[365012244,1749397834279,-1646.7187223,0.00017989,2]
[365012247,1749397838475,-414.7400349,0.00017989,2]
[365012248,1749397838487,-358.33485164,0.00017989,2]
[365012249,1749397838648,-279.74419682,0.00017989,2]
[365012404,1749397840609,-618.91902262,0.00017989,2]
[365012668,1749397843314,-362.93559025,0.00017989,2]
[365012995,1749397846601,-151.25794125,0.000179,2]
[365012997,1749397846612,-300.0,0.00017988,2]
[365012999,1749397846622,-8235.39057018,0.00017989,2]
[365013001,1749397846631,-555.28656708,0.00017989,2]
[365013003,1749397846640,-480.0,0.00017989,2]
[365013005,1749397846650,-480.0,0.00017989,2]
[365013007,1749397846659,-438.45012153,0.00017989,2]
[365014212,1749397859383,2983.0,0.000129,5]
[365015137,1749398011094,4340.259862,0.00016991,2]
[365015138,1749398171708,589.79592221,0.00017,2]
[365015139,1749398171731,7921.7933556,0.00017,2]
[365015140,1749398292188,203.0,0.00016307,2]
[365015141,1749398395016,177.41567776,0.00016976,2]
[365015142,1749398594894,532.79,0.00015073,2]
[365015143,1749398608817,182.74,0.00016983,2]
[365015144,1749398629636,209.3,0.00016983,2]
[365015145,1749398692475,177.41567776,0.00016976,2]
[365015146,1749398757438,203.15,0.00013699,2]
[365015148,1749398772283,392.39528888,0.00016946,2]
[365015149,1749398772307,4041.12471112,0.00016946,2]
[365015150,1749398837945,262.95,0.00016931,2]
[365015151,1749398947243,736.03,0.00016938,2]
[365015152,1749399011768,203.0,0.00016207,2]
[365015153,1749399020791,202.16,0.00016993,2]
[365015155,1749399031579,-150.0,0.0001706,7]
[365015156,1749399031589,-500.0,0.0001706,3]
[365015157,1749399031598,-300.0,0.00017076,2]